[Event "SS Manhem Chess Week 2022: IM Tournament"]
[Site "Schackcentrum, Vegagatan 20, Gothenburg, Sweden"]
[Date "2022.08.07"]
[Round "2.1"]
[White "Olsson, William"]
[Black "Pantzar, Milton"]
[Result "0-1"]
[TimeControl "90 minutes for 40 moves + 30 minutes for the rest of the game + 30 seconds per move from move one."]
[WhiteTitle "FM"]
[BlackTitle "IM"]
[WhiteFideId "1741721"]
[BlackFideId "1721003"]
[WhiteElo "2311"]
[BlackElo "2447"]

1. c4 {[%clk 01:30:54]} {[%emt 00:00:05]} e6 {[%clk 01:30:33]} {[%emt
00:00:28]} 2. Nf3 {[%clk 01:31:18]} {[%emt 00:00:06]} d5 {[%clk 01:30:50]}
{[%emt 00:00:13]} 3. g3 {[%clk 01:31:43]} {[%emt 00:00:05]} Nf6 {[%clk
01:29:35]} {[%emt 00:01:45]} 4. Bg2 {[%clk 01:32:00]} {[%emt 00:00:12]} Be7
{[%clk 01:28:59]} {[%emt 00:01:06]} 5. O-O {[%clk 01:32:12]} {[%emt 00:00:16]}
O-O {[%clk 01:29:14]} {[%emt 00:00:17]} 6. b3 {[%clk 01:32:37]} {[%emt
00:00:06]} c6 {[%clk 01:22:37]} {[%emt 00:07:07]} 7. Bb2 {[%clk 01:32:35]}
{[%emt 00:00:32]} b6 {[%clk 01:22:17]} {[%emt 00:00:50]} 8. e3 {[%clk
01:33:00]} {[%emt 00:00:05]} Bb7 {[%clk 01:19:57]} {[%emt 00:02:50]} 9. Qe2
{[%clk 01:31:09]} {[%emt 00:02:20]} Nbd7 {[%clk 01:18:08]} {[%emt 00:02:19]} 10.
d3 {[%clk 01:31:13]} {[%emt 00:00:26]} Qc7 {[%clk 01:12:49]} {[%emt 00:05:48]}
11. e4 {[%clk 01:26:19]} {[%emt 00:05:24]} dxe4 {[%clk 01:11:23]} {[%emt
00:01:57]} 12. dxe4 {[%clk 01:26:40]} {[%emt 00:00:09]} e5 {[%clk 01:11:38]}
{[%emt 00:00:15]} 13. Nc3 {[%clk 01:24:20]} {[%emt 00:02:50]} Rfe8 {[%clk
01:09:50]} {[%emt 00:02:17]} 14. Ne1 {[%clk 01:09:16]} {[%emt 00:15:34]} Nc5
{[%clk 01:05:51]} {[%emt 00:04:29]} 15. Nd3 {[%clk 01:07:29]} {[%emt 00:02:17]}
Nxd3 {[%clk 01:01:17]} {[%emt 00:05:04]} 16. Qxd3 {[%clk 01:07:44]} {[%emt
00:00:15]} Rad8 {[%clk 00:59:52]} {[%emt 00:01:55]} 17. Qc2 {[%clk 01:08:06]}
{[%emt 00:00:08]} Bc8 {[%clk 00:53:49]} {[%emt 00:06:34]} 18. Rad1 {[%clk
01:06:33]} {[%emt 00:02:03]} h5 {[%clk 00:49:41]} {[%emt 00:04:38]} 19. h3
{[%clk 01:02:53]} {[%emt 00:04:10]} h4 {[%clk 00:44:30]} {[%emt 00:05:40]} 20.
g4 {[%clk 00:57:29]} {[%emt 00:05:54]} Nh7 {[%clk 00:41:44]} {[%emt 00:03:16]}
21. Ne2 {[%clk 00:56:03]} {[%emt 00:01:57]} Rxd1 {[%clk 00:36:00]} {[%emt
00:06:13]} 22. Rxd1 {[%clk 00:56:16]} {[%emt 00:00:16]} Ng5 {[%clk 00:29:18]}
{[%emt 00:07:14]} 23. Rd3 {[%clk 00:50:21]} {[%emt 00:06:24]} Bc5 {[%clk
00:24:47]} {[%emt 00:05:02]} 24. Bc1 {[%clk 00:43:46]} {[%emt 00:07:05]} Qe7
{[%clk 00:23:34]} {[%emt 00:01:43]} 25. Bxg5 {[%clk 00:41:49]} {[%emt
00:02:27]} Qxg5 {[%clk 00:23:50]} {[%emt 00:00:14]} 26. Qd2 {[%clk 00:40:07]}
{[%emt 00:02:12]} Qf6 {[%clk 00:20:26]} {[%emt 00:03:53]} 27. Bf3 {[%clk
00:33:35]} {[%emt 00:07:03]} Qe7 {[%clk 00:17:34]} {[%emt 00:03:21]} 28. Nc3
{[%clk 00:31:29]} {[%emt 00:02:36]} Be6 {[%clk 00:16:01]} {[%emt 00:02:04]} 29.
Kg2 {[%clk 00:30:32]} {[%emt 00:01:27]} Bb4 {[%clk 00:13:23]} {[%emt 00:03:08]}
30. Qc2 {[%clk 00:28:39]} {[%emt 00:02:22]} Rd8 {[%clk 00:11:34]} {[%emt
00:02:20]} 31. Ne2 {[%clk 00:28:24]} {[%emt 00:00:44]} Rxd3 {[%clk 00:08:35]}
{[%emt 00:03:30]} 32. Qxd3 {[%clk 00:28:48]} {[%emt 00:00:07]} Kf8 {[%clk
00:07:57]} {[%emt 00:01:07]} 33. Nc3 {[%clk 00:27:01]} {[%emt 00:02:17]} Ke8
{[%clk 00:05:49]} {[%emt 00:02:38]} 34. Nd1 {[%clk 00:26:49]} {[%emt 00:00:42]}
Bc5 {[%clk 00:05:40]} {[%emt 00:00:39]} 35. Ne3 {[%clk 00:26:09]} {[%emt
00:01:10]} g6 {[%clk 00:04:47]} {[%emt 00:01:23]} 36. Qd2 {[%clk 00:22:48]}
{[%emt 00:03:51]} Qg5 {[%clk 00:03:51]} {[%emt 00:01:25]} 37. Nf1 {[%clk
00:23:13]} {[%emt 00:00:05]} Qxd2 {[%clk 00:03:09]} {[%emt 00:01:13]} 38. Nxd2
{[%clk 00:23:38]} {[%emt 00:00:05]} Kd7 {[%clk 00:02:51]} {[%emt 00:00:48]} 39.
Bd1 {[%clk 00:22:49]} {[%emt 00:01:18]} g5 {[%clk 00:02:39]} {[%emt 00:00:43]}
40. Nf3 {[%clk 00:13:17]} {[%emt 00:10:03]} f6 {[%clk 00:02:53]} {[%emt
00:00:15]} 41. Ne1 {[%clk 00:13:40]} {[%emt 00:00:07]} Kd6 {[%clk 00:26:26]}
{[%emt 00:06:56]} 42. Kf3 {[%clk 00:42:26]} {[%emt 00:01:44]} Bd4 {[%clk
00:19:34]} {[%emt 00:07:22]} 43. Ke2 {[%clk 00:42:08]} {[%emt 00:00:48]} Bc3
{[%clk 00:19:32]} {[%emt 00:00:32]} 44. Nc2 {[%clk 00:41:06]} {[%emt 00:01:32]}
Bb2 {[%clk 00:17:54]} {[%emt 00:02:09]} 45. Ne1 {[%clk 00:36:54]} {[%emt
00:04:41]} Bc3 {[%clk 00:17:57]} {[%emt 00:00:27]} 46. Nc2 {[%clk 00:37:16]}
{[%emt 00:00:08]} a5 {[%clk 00:15:50]} {[%emt 00:02:37]} 47. Kd3 {[%clk
00:35:56]} {[%emt 00:01:50]} Bb2 {[%clk 00:16:10]} {[%emt 00:00:10]} 48. f3
{[%clk 00:30:32]} {[%emt 00:05:54]} Kc5 {[%clk 00:15:01]} {[%emt 00:01:38]} 49.
a3 {[%clk 00:29:05]} {[%emt 00:01:58]} b5 {[%clk 00:11:13]} {[%emt 00:04:18]}
50. b4+ {[%clk 00:28:50]} {[%emt 00:00:45]} Kb6 {[%clk 00:10:55]} {[%emt
00:00:48]} 51. cxb5 {[%clk 00:27:30]} {[%emt 00:01:51]} Kxb5 {[%clk 00:08:20]}
{[%emt 00:03:06]} 52. a4+ {[%clk 00:27:49]} {[%emt 00:00:10]} Ka6 {[%clk
00:06:50]} {[%emt 00:02:00]} 53. Be2 {[%clk 00:24:57]} {[%emt 00:03:22]} Bb3
{[%clk 00:03:54]} {[%emt 00:03:26]} 54. Kd2+ {[%clk 00:25:08]} {[%emt
00:00:19]} Kb7 {[%clk 00:03:36]} {[%emt 00:00:48]} 55. bxa5 {[%clk 00:25:19]}
{[%emt 00:00:19]} Bxa4 {[%clk 00:03:41]} {[%emt 00:00:25]} 56. Ne3 {[%clk
00:25:21]} {[%emt 00:00:29]} Bd4 {[%clk 00:02:49]} {[%emt 00:01:21]} 57. Nc4
{[%clk 00:24:59]} {[%emt 00:00:52]} Bc5 {[%clk 00:02:11]} {[%emt 00:01:08]} 58.
Kc3 {[%clk 00:20:43]} {[%emt 00:04:46]} Bb5 {[%clk 00:02:23]} {[%emt 00:00:19]}
59. Kb3 {[%clk 00:19:18]} {[%emt 00:01:53]} Ka6 {[%clk 00:01:37]} {[%emt
00:01:17]} 60. Bf1 {[%clk 00:19:23]} {[%emt 00:00:26]} Be7 {[%clk 00:01:27]}
{[%emt 00:00:40]} 61. Be2 {[%clk 00:19:01]} {[%emt 00:00:52]} Bd8 {[%clk
00:01:35]} {[%emt 00:00:22]} 62. Bd3 {[%clk 00:19:19]} {[%emt 00:00:13]} Bxa5
{[%clk 00:01:46]} {[%emt 00:00:18]} 63. Be2 {[%clk 00:19:39]} {[%emt 00:00:10]}
Bd8 {[%clk 00:01:36]} {[%emt 00:00:40]} 64. Bd3 {[%clk 00:20:02]} {[%emt
00:00:07]} Be7 {[%clk 00:01:53]} {[%emt 00:00:14]} 65. Be2 {[%clk 00:20:11]}
{[%emt 00:00:20]} Kb7 {[%clk 00:01:47]} {[%emt 00:00:36]} 66. Na5+ {[%clk
00:20:13]} {[%emt 00:00:27]} Kb6 {[%clk 00:02:07]} {[%emt 00:00:11]} 67. Nc4+
{[%clk 00:20:37]} {[%emt 00:00:06]} Kc5 {[%clk 00:01:49]} {[%emt 00:00:48]} 68.
Kc3 {[%clk 00:21:02]} {[%emt 00:00:05]} Bd8 {[%clk 00:02:07]} {[%emt 00:00:12]}
69. Bd3 {[%clk 00:21:02]} {[%emt 00:00:31]} Bc7 {[%clk 00:02:23]} {[%emt
00:00:13]} 70. Be2 {[%clk 00:21:17]} {[%emt 00:00:15]} Ba5+ {[%clk 00:02:27]}
{[%emt 00:00:26]} 71. Kb3 {[%clk 00:21:41]} {[%emt 00:00:06]} Be1 {[%clk
00:02:39]} {[%emt 00:00:17]} 0-1

[Event "SS Manhem Chess Week 2022: IM Tournament"]
[Site "Schackcentrum, Vegagatan 20, Gothenburg, Sweden"]
[Date "2022.08.07"]
[Round "2.2"]
[White "Mitusov, Semen"]
[Black "Kucuksari, Kaan"]
[Result "1-0"]
[TimeControl "90 minutes for 40 moves + 30 minutes for the rest of the game + 30 seconds per move from move one."]
[WhiteTitle "FM"]
[BlackTitle "FM"]
[WhiteFideId "14151049"]
[BlackFideId "6380166"]
[WhiteElo "2415"]
[BlackElo "2398"]

1. e4 {[%clk 01:30:51]} {[%emt 00:00:08]} c6 {[%clk 01:30:38]} {[%emt
00:00:23]} 2. d4 {[%clk 01:29:33]} {[%emt 00:01:48]} d5 {[%clk 01:31:01]}
{[%emt 00:00:06]} 3. e5 {[%clk 01:29:58]} {[%emt 00:00:06]} c5 {[%clk
01:31:25]} {[%emt 00:00:06]} 4. dxc5 {[%clk 01:29:15]} {[%emt 00:01:13]} Nc6
{[%clk 01:31:49]} {[%emt 00:00:06]} 5. f4 {[%clk 01:28:14]} {[%emt 00:01:31]}
e6 {[%clk 01:32:13]} {[%emt 00:00:06]} 6. Be3 {[%clk 01:28:30]} {[%emt
00:00:14]} d4 {[%clk 01:32:38]} {[%emt 00:00:06]} 7. Bf2 {[%clk 01:28:56]}
{[%emt 00:00:04]} Bxc5 {[%clk 01:33:02]} {[%emt 00:00:07]} 8. Nd2 {[%clk
01:26:57]} {[%emt 00:02:29]} Nge7 {[%clk 01:33:25]} {[%emt 00:00:07]} 9. a3
{[%clk 01:27:08]} {[%emt 00:00:19]} Nf5 {[%clk 01:29:37]} {[%emt 00:04:17]} 10.
Bd3 {[%clk 01:25:47]} {[%emt 00:01:52]} a5 {[%clk 01:28:51]} {[%emt 00:01:17]}
11. Qf3 {[%clk 01:23:33]} {[%emt 00:02:43]} a4 {[%clk 01:16:50]} {[%emt
00:12:31]} 12. Ne2 {[%clk 01:19:07]} {[%emt 00:04:56]} Qa5 {[%clk 01:15:45]}
{[%emt 00:01:35]} 13. O-O-O {[%clk 01:16:09]} {[%emt 00:03:28]} Bd7 {[%clk
01:12:17]} {[%emt 00:03:58]} 14. Nc4 {[%clk 01:14:00]} {[%emt 00:02:39]} Qc7
{[%clk 01:08:51]} {[%emt 00:03:56]} 15. Bxf5 {[%clk 01:10:57]} {[%emt
00:03:33]} exf5 {[%clk 01:09:19]} {[%emt 00:00:02]} 16. Nxd4 {[%clk 01:09:52]}
{[%emt 00:01:34]} Nxd4 {[%clk 01:07:58]} {[%emt 00:01:52]} 17. Bxd4 {[%clk
01:09:51]} {[%emt 00:00:31]} O-O {[%clk 01:05:32]} {[%emt 00:02:56]} 18. Bxc5
{[%clk 01:07:20]} {[%emt 00:03:02]} Qxc5 {[%clk 01:05:55]} {[%emt 00:00:05]} 19.
Rxd7 {[%clk 01:06:57]} {[%emt 00:00:53]} Qxc4 {[%clk 01:06:23]} {[%emt
00:00:03]} 20. Kb1 {[%clk 01:06:25]} {[%emt 00:01:02]} Rac8 {[%clk 00:57:02]}
{[%emt 00:09:50]} 21. Qf2 {[%clk 01:05:04]} {[%emt 00:01:50]} Rfd8 {[%clk
00:52:07]} {[%emt 00:05:25]} 22. Rhd1 {[%clk 01:00:37]} {[%emt 00:04:58]} Rxd7
{[%clk 00:50:33]} {[%emt 00:02:04]} 23. Rxd7 {[%clk 01:01:03]} {[%emt
00:00:05]} h6 {[%clk 00:43:57]} {[%emt 00:07:06]} 24. Rd4 {[%clk 00:58:03]}
{[%emt 00:03:30]} Qc6 {[%clk 00:41:03]} {[%emt 00:03:23]} 25. Qd2 {[%clk
00:58:01]} {[%emt 00:00:33]} Rc7 {[%clk 00:33:32]} {[%emt 00:08:02]} 26. c3
{[%clk 00:52:22]} {[%emt 00:06:09]} b5 {[%clk 00:30:03]} {[%emt 00:03:58]} 27.
Qc2 {[%clk 00:43:23]} {[%emt 00:09:29]} g6 {[%clk 00:28:37]} {[%emt 00:01:56]}
28. Qd2 {[%clk 00:43:23]} {[%emt 00:00:30]} Kh7 {[%clk 00:27:52]} {[%emt
00:01:15]} 29. h4 {[%clk 00:38:05]} {[%emt 00:05:47]} h5 {[%clk 00:25:35]}
{[%emt 00:02:47]} 30. Ka1 {[%clk 00:37:29]} {[%emt 00:01:06]} Kg7 {[%clk
00:18:00]} {[%emt 00:08:05]} 31. Rd8 {[%clk 00:34:59]} {[%emt 00:03:00]} Kh7
{[%emt 00:17:09]} 32. Qd5 {[%clk 00:33:46]} Qa6 {[%clk 00:03:32]} {[%emt
00:00:02]} 33. Ra8 {[%clk 00:33:01]} {[%emt 00:01:15]} Rd7 {[%clk 00:03:03]}
{[%emt 00:01:00]} 34. Qxf7+ {[%clk 00:33:04]} {[%emt 00:00:27]} 1-0

[Event "SS Manhem Chess Week 2022: IM Tournament"]
[Site "Schackcentrum, Vegagatan 20, Gothenburg, Sweden"]
[Date "2022.08.07"]
[Round "2.3"]
[White "Rydstrom, Tom"]
[Black "Johnson, Daniel"]
[Result "1/2-1/2"]
[TimeControl "90 minutes for 40 moves + 30 minutes for the rest of the game + 30 seconds per move from move one."]
[WhiteTitle "FM"]
[WhiteFideId "1714830"]
[BlackFideId "1721283"]
[WhiteElo "2304"]
[BlackElo "2207"]

1. e4 {[%clk 01:29:28]} {[%emt 00:01:31]} e5 {[%clk 01:30:52]} {[%emt
00:00:08]} 2. Nf3 {[%clk 01:29:54]} {[%emt 00:00:04]} Nc6 {[%clk 01:31:17]}
{[%emt 00:00:05]} 3. Bc4 {[%clk 01:30:07]} {[%emt 00:00:17]} Bc5 {[%clk
01:31:20]} {[%emt 00:00:27]} 4. c3 {[%clk 01:29:23]} {[%emt 00:01:14]} Nf6
{[%clk 01:30:11]} {[%emt 00:01:39]} 5. d3 {[%clk 01:29:16]} {[%emt 00:00:39]}
d6 {[%clk 01:30:11]} {[%emt 00:00:28]} 6. Nbd2 {[%clk 01:29:16]} {[%emt
00:00:29]} a6 {[%clk 01:29:56]} {[%emt 00:00:45]} 7. Bb3 {[%clk 01:29:36]}
{[%emt 00:00:11]} h6 {[%clk 01:29:34]} {[%emt 00:00:52]} 8. h3 {[%clk
01:28:26]} {[%emt 00:01:41]} O-O {[%clk 01:18:58]} {[%emt 00:11:05]} 9. O-O
{[%clk 01:28:47]} {[%emt 00:00:09]} Ba7 {[%clk 01:18:02]} {[%emt 00:01:25]} 10.
Re1 {[%clk 01:29:12]} {[%emt 00:00:05]} Ne7 {[%clk 01:13:04]} {[%emt 00:05:28]}
11. d4 {[%clk 01:28:24]} {[%emt 00:01:19]} Ng6 {[%emt 00:07:06]} 12. Nf1 {[%clk
01:22:51]} c6 {[%clk 00:59:30]} {[%emt 00:13:30]} 13. Ng3 {[%clk 01:20:00]}
{[%emt 00:03:21]} Re8 {[%clk 00:56:33]} {[%emt 00:03:26]} 14. a4 {[%clk
01:04:51]} {[%emt 00:15:40]} Be6 {[%clk 00:53:48]} {[%emt 00:03:15]} 15. a5
{[%clk 01:01:31]} {[%emt 00:03:51]} Bxb3 {[%clk 00:48:14]} {[%emt 00:06:03]} 16.
Qxb3 {[%clk 01:01:59]} {[%emt 00:00:02]} Qc7 {[%clk 00:47:33]} {[%emt
00:01:11]} 17. Be3 {[%clk 00:53:08]} {[%emt 00:09:21]} exd4 {[%clk 00:41:06]}
{[%emt 00:06:57]} 18. Bxd4 {[%clk 00:53:06]} {[%emt 00:00:32]} Bxd4 {[%clk
00:39:35]} {[%emt 00:02:01]} 19. cxd4 {[%clk 00:53:18]} {[%emt 00:00:18]} Re6
{[%clk 00:38:57]} {[%emt 00:01:08]} 20. Qc3 {[%clk 00:47:13]} {[%emt 00:06:35]}
Qd7 {[%clk 00:33:10]} {[%emt 00:06:17]} 21. Nd2 {[%clk 00:44:00]} {[%emt
00:03:44]} Rae8 {[%clk 00:30:07]} {[%emt 00:03:32]} 22. Re3 {[%clk 00:34:16]}
{[%emt 00:10:14]} h5 {[%clk 00:20:05]} {[%emt 00:10:32]} 23. Rae1 {[%clk
00:32:20]} {[%emt 00:02:25]} h4 {[%clk 00:15:56]} {[%emt 00:04:39]} 24. Nf5
{[%clk 00:28:57]} {[%emt 00:03:53]} Qd8 {[%clk 00:05:13]} {[%emt 00:11:13]} 25.
b4 {[%clk 00:27:25]} {[%emt 00:02:03]} Nh5 {[%clk 00:05:11]} {[%emt 00:00:31]}
26. Kh2 {[%clk 00:09:58]} {[%emt 00:17:57]} Qf6 {[%clk 00:01:13]} {[%emt
00:04:27]} 27. g4 {[%clk 00:08:06]} {[%emt 00:02:23]} hxg3+ {[%clk 00:00:58]}
{[%emt 00:00:45]} 28. fxg3 {[%clk 00:08:35]} {[%emt 00:00:02]} Ne7 {[%clk
00:00:50]} {[%emt 00:00:37]} 29. g4 {[%clk 00:08:01]} {[%emt 00:01:04]} Nf4
{[%clk 00:00:52]} {[%emt 00:00:27]} 30. Rf1 {[%clk 00:07:09]} {[%emt 00:01:22]}
g5 {[%clk 00:00:38]} {[%emt 00:00:44]} 31. Ref3 {[%clk 00:02:59]} {[%emt
00:04:40]} Nxf5 {[%clk 00:00:33]} {[%emt 00:00:35]} 32. gxf5 {[%clk 00:03:28]}
{[%emt 00:00:01]} R6e7 {[%clk 00:00:32]} {[%emt 00:00:31]} 33. Rxf4 {[%clk
00:02:34]} {[%emt 00:01:23]} gxf4 {[%clk 00:00:51]} {[%emt 00:00:11]} 34. Rxf4
{[%clk 00:03:02]} {[%emt 00:00:02]} Qh6 {[%clk 00:00:48]} {[%emt 00:00:33]} 35.
Qf3 {[%clk 00:01:09]} {[%emt 00:02:24]} f6 {[%clk 00:00:42]} {[%emt 00:00:35]}
36. Nf1 {[%clk 00:01:18]} {[%emt 00:00:21]} Rg7 {[%clk 00:00:37]} {[%emt
00:00:34]} 37. Ne3 {[%clk 00:01:25]} {[%emt 00:00:24]} Qg5 {[%clk 00:00:33]}
{[%emt 00:00:34]} 38. Rg4 {[%clk 00:00:55]} {[%emt 00:01:00]} Qh6 {[%clk
00:00:51]} {[%emt 00:00:12]} 39. Rf4 {[%clk 00:00:48]} {[%emt 00:00:37]} Qg5
{[%clk 00:01:07]} {[%emt 00:00:14]} 40. Rg4 {[%clk 00:00:43]} {[%emt 00:00:35]}
Qh6 {[%clk 00:01:06]} {[%emt 00:00:31]} 41. Rf4 {[%clk 00:28:07]} {[%emt
00:03:06]} Qg5 {[%clk 00:25:54]} {[%emt 00:05:41]} 1/2-1/2

[Event "SS Manhem Chess Week 2022: IM Tournament"]
[Site "Schackcentrum, Vegagatan 20, Gothenburg, Sweden"]
[Date "2022.08.07"]
[Round "2.4"]
[White "Jacobsen, Mikkel Manosri"]
[Black "Heimisson, Hilmir Freyr"]
[Result "1/2-1/2"]
[TimeControl "90 minutes for 40 moves + 30 minutes for the rest of the game + 30 seconds per move from move one."]
[WhiteTitle "FM"]
[BlackTitle "IM"]
[WhiteFideId "1444514"]
[BlackFideId "2309998"]
[WhiteElo "2320"]
[BlackElo "2323"]

1. d4 {[%clk 01:29:58]} {[%emt 00:01:02]} Nf6 {[%clk 01:27:56]} {[%emt
00:03:04]} 2. c4 {[%clk 01:30:22]} {[%emt 00:00:07]} e6 {[%clk 01:27:59]}
{[%emt 00:00:27]} 3. Nf3 {[%clk 01:30:47]} {[%emt 00:00:04]} d5 {[%clk
01:27:58]} {[%emt 00:00:31]} 4. Nc3 {[%clk 01:31:04]} {[%emt 00:00:13]} dxc4
{[%clk 01:23:44]} {[%emt 00:04:44]} 5. e3 {[%clk 01:30:12]} {[%emt 00:01:21]}
a6 {[%clk 01:24:05]} {[%emt 00:00:10]} 6. a4 {[%clk 01:30:08]} {[%emt
00:00:34]} b6 {[%clk 01:08:07]} {[%emt 00:16:28]} 7. Bxc4 {[%clk 01:30:10]}
{[%emt 00:00:28]} Bb7 {[%clk 01:08:04]} {[%emt 00:00:33]} 8. O-O {[%clk
01:26:11]} {[%emt 00:04:29]} Nbd7 {[%clk 01:06:27]} {[%emt 00:02:06]} 9. Qe2
{[%clk 01:18:37]} {[%emt 00:08:03]} c5 {[%clk 01:05:23]} {[%emt 00:01:36]} 10.
Ne5 {[%clk 01:09:08]} {[%emt 00:09:59]} Bd6 {[%clk 01:00:25]} {[%emt 00:05:27]}
11. f4 {[%clk 01:08:18]} {[%emt 00:01:20]} O-O {[%clk 00:58:03]} {[%emt
00:02:53]} 12. Bd2 {[%clk 01:05:29]} {[%emt 00:03:18]} Qe7 {[%clk 00:56:41]}
{[%emt 00:01:53]} 13. Be1 {[%clk 01:04:25]} {[%emt 00:01:34]} Rfc8 {[%clk
00:44:50]} {[%emt 00:12:21]} 14. Bh4 {[%clk 01:01:56]} {[%emt 00:02:58]} Nf8
{[%clk 00:42:00]} {[%emt 00:03:20]} 15. d5 {[%clk 00:50:34]} {[%emt 00:11:53]}
b5 {[%clk 00:34:38]} {[%emt 00:07:52]} 16. axb5 {[%clk 00:24:09]} {[%emt
00:26:54]} axb5 {[%clk 00:35:01]} {[%emt 00:00:08]} 17. Rxa8 {[%clk 00:24:35]}
{[%emt 00:00:05]} Rxa8 {[%clk 00:34:13]} {[%emt 00:01:18]} 18. Bxb5 {[%clk
00:21:14]} {[%emt 00:03:50]} exd5 {[%clk 00:28:50]} {[%emt 00:05:54]} 19. Ng4
{[%clk 00:20:02]} {[%emt 00:01:40]} Ng6 {[%clk 00:21:44]} {[%emt 00:07:36]} 20.
Bxf6 {[%clk 00:16:30]} {[%emt 00:04:02]} gxf6 {[%clk 00:22:07]} {[%emt
00:00:08]} 21. Nh6+ {[%clk 00:14:22]} {[%emt 00:02:37]} Kh8 {[%clk 00:22:20]}
{[%emt 00:00:17]} 22. Nf5 {[%clk 00:14:42]} {[%emt 00:00:10]} Qe6 {[%clk
00:17:34]} {[%emt 00:05:16]} 23. Bd3 {[%clk 00:14:54]} {[%emt 00:00:17]} Bf8
{[%clk 00:09:42]} {[%emt 00:08:22]} 24. Rf3 {[%clk 00:02:35]} {[%emt 00:12:49]}
Ra1+ {[%clk 00:08:00]} {[%emt 00:02:13]} 25. Kf2 {[%clk 00:03:03]} {[%emt
00:00:02]} d4 {[%clk 00:02:38]} {[%emt 00:05:52]} 26. Rh3 {[%clk 00:03:31]}
{[%emt 00:00:01]} dxe3+ {[%clk 00:01:44]} {[%emt 00:01:25]} 27. Nxe3 {[%clk
00:00:54]} {[%emt 00:03:07]} Qd6 {[%clk 00:00:49]} {[%emt 00:01:25]} 28. g3
{[%clk 00:00:36]} {[%emt 00:00:48]} Bc8 {[%clk 00:00:43]} {[%emt 00:00:37]} 29.
Rh5 {[%clk 00:00:44]} {[%emt 00:00:21]} c4 {[%clk 00:00:41]} {[%emt 00:00:32]}
30. Nxc4 {[%clk 00:00:44]} {[%emt 00:00:30]} Qd7 {[%clk 00:00:36]} {[%emt
00:00:35]} 31. Ne4 {[%clk 00:00:45]} {[%emt 00:00:29]} Qa7+ {[%clk 00:00:35]}
{[%emt 00:00:31]} 32. Qe3 {[%clk 00:00:50]} {[%emt 00:00:24]} Qe7 {[%clk
00:00:38]} {[%emt 00:00:28]} 33. Qd4 {[%clk 00:00:39]} {[%emt 00:00:41]} Bg7
{[%clk 00:00:37]} {[%emt 00:00:30]} 34. Rc5 {[%clk 00:00:41]} {[%emt 00:00:28]}
Bh3 {[%clk 00:00:32]} {[%emt 00:00:36]} 35. Qd6 {[%clk 00:00:41]} {[%emt
00:00:31]} Rh1 {[%clk 00:00:35]} {[%emt 00:00:26]} 36. Qxe7 {[%clk 00:00:37]}
{[%emt 00:00:34]} Nxe7 {[%clk 00:00:38]} {[%emt 00:00:28]} 37. Ned6 {[%clk
00:00:48]} {[%emt 00:00:18]} Rxh2+ {[%clk 00:00:50]} {[%emt 00:00:19]} 38. Ke3
{[%clk 00:00:35]} {[%emt 00:00:43]} Be6 {[%clk 00:00:50]} {[%emt 00:00:31]} 39.
f5 {[%clk 00:00:44]} {[%emt 00:00:21]} Bh6+ {[%clk 00:00:58]} {[%emt 00:00:21]}
40. Kd4 {[%clk 00:01:03]} {[%emt 00:00:11]} Bxc4 {[%clk 00:00:44]} {[%emt
00:00:44]} 41. Kxc4 {[%clk 00:00:34]} {[%emt 00:00:58]} Rxb2 {[%clk 00:26:20]}
{[%emt 00:04:55]} 42. Rc7 {[%clk 00:22:19]} {[%emt 00:08:45]} Bf8 {[%clk
00:21:56]} {[%emt 00:04:53]} 43. Be4 {[%clk 00:21:03]} {[%emt 00:01:46]} Rb6
{[%clk 00:03:34]} {[%emt 00:18:54]} 44. Nxf7+ {[%clk 00:19:16]} {[%emt
00:02:16]} Kg8 {[%clk 00:02:40]} {[%emt 00:01:23]} 45. Nd8 {[%clk 00:17:53]}
{[%emt 00:01:54]} Rb4+ {[%clk 00:02:03]} {[%emt 00:01:08]} 46. Kxb4 {[%clk
00:18:21]} {[%emt 00:00:02]} Nd5+ {[%clk 00:02:26]} {[%emt 00:00:07]} 47. Kb5
{[%clk 00:18:44]} {[%emt 00:00:07]} Nxc7+ {[%clk 00:02:51]} {[%emt 00:00:05]}
48. Kc6 {[%clk 00:19:08]} {[%emt 00:00:05]} Na6 {[%clk 00:02:03]} {[%emt
00:01:19]} 49. Bd5+ {[%clk 00:17:53]} {[%emt 00:01:44]} Kh8 {[%clk 00:02:04]}
{[%emt 00:00:29]} 50. Kd7 {[%clk 00:16:51]} {[%emt 00:01:33]} Ba3 {[%clk
00:01:10]} {[%emt 00:01:24]} 51. Ne6 {[%clk 00:14:47]} {[%emt 00:02:33]} Nc5+
{[%clk 00:00:46]} {[%emt 00:00:55]} 52. Ke8 {[%clk 00:15:15]} {[%emt 00:00:02]}
Nxe6 {[%clk 00:00:39]} {[%emt 00:00:37]} 53. fxe6 {[%clk 00:15:23]} {[%emt
00:00:21]} Kg7 {[%clk 00:01:03]} {[%emt 00:00:06]} 54. e7 {[%clk 00:13:49]}
{[%emt 00:02:05]} Kg6 {[%clk 00:01:20]} {[%emt 00:00:13]} 55. Kd7 {[%clk
00:13:54]} {[%emt 00:00:25]} Bxe7 {[%clk 00:01:36]} {[%emt 00:00:14]} 56. Kxe7
{[%clk 00:14:21]} {[%emt 00:00:03]} Kg5 {[%clk 00:01:51]} {[%emt 00:00:15]} 57.
Bf3 {[%clk 00:13:48]} {[%emt 00:01:03]} h5 {[%clk 00:01:53]} {[%emt 00:00:27]}
58. Bxh5 {[%clk 00:13:10]} {[%emt 00:01:08]} Kxh5 {[%clk 00:02:19]} {[%emt
00:00:05]} 59. Kxf6 {[%clk 00:13:35]} {[%emt 00:00:05]} Kg4 {[%clk 00:02:45]}
{[%emt 00:00:04]} 60. Ke6 {[%clk 00:14:00]} {[%emt 00:00:06]} Kxg3 {[%clk
00:03:10]} {[%emt 00:00:05]} 1/2-1/2